bitfinex-derivatives/quotes_SOLF0:USTF0_20250111
["timestamp","ask_amount","ask_price","bid_price","bid_amount"]
[1736580409407,65.73538391,185.79,185.78,3.0]
[1736580411306,77.00412279,185.79,185.68,2.6934]
[1736580411504,77.00412279,185.79,185.65,11.26873888]
[1736580411904,65.73538391,185.79,185.7,2.693]
[1736580413102,65.73538391,185.79,185.71,1.5736]
[1736580415705,65.73538391,185.79,185.71,4.2665]
[1736580416609,13.96003888,185.83,185.71,4.2665]
[1736580416811,11.26873888,185.8,185.71,4.2665]
[1736580418412,11.26873888,185.81,185.72,2.6928]
[1736580418812,11.26873888,185.81,185.71,1.5736]
[1736580419214,11.26873888,185.81,185.74,2.6925]
[1736580420416,1.661,185.84,185.74,2.6925]
[1736580420811,1.661,185.84,185.75,2.6924]
[1736580421107,1.661,185.84,185.73,11.26873888]
[1736580421911,11.26873888,185.88,185.76,11.26873888]
[1736580424013,11.26873888,185.88,185.8,2.6916]
[1736580424715,11.26873888,185.88,185.81,2.6915]
[1736580425010,39.49471051,185.99,185.83,11.26873888]
[1736580425216,42.18371051,185.99,185.86,11.26873888]
[1736580425409,39.49471051,185.99,185.89,11.26873888]
[1736580428117,39.49471051,185.99,185.93,2.6897]
[1736580429014,39.49471051,185.99,185.92,2.69]
[1736580432718,11.26873888,185.98,185.9,2.6901]
[1736580432919,11.26873888,185.98,185.84,1.5278]
[1736580433918,13.95793888,185.98,185.88,2.6905]
[1736580434114,13.95793888,185.98,185.84,1.5278]
[1736580435123,13.95793888,185.98,185.89,2.6903]
[1736580435523,2.6892,185.97,185.89,2.6903]
[1736580435925,39.49471051,185.99,185.88,2.92675861]
[1736580436120,53.45254939,185.99,185.88,2.92675861]
[1736580436527,53.45254939,185.99,185.91,2.6901]
[1736580437324,39.49471051,185.99,185.95,2.6895]
[1736580437626,39.49471051,185.99,185.94,3.85362275]
[1736580437828,39.49471051,185.99,185.94,1.32242275]
[1736580438026,2.6892,185.98,185.9,2.6902]
[1736580439022,39.49471051,185.99,185.88,2.92675861]
[1736580439023,2.6895,185.95,185.88,5.61715861]
[1736580439227,39.49471051,185.99,185.88,27.45202933]
[1736580439829,2.6896,185.95,185.88,27.45202933]
[1736580440027,2.6896,185.95,185.89,5.09265647]
[1736580440928,2.6896,185.95,185.88,5.61715861]
[1736580442929,2.6897,185.94,185.88,5.61715861]
[1736580443121,11.26873888,185.97,185.88,2.92675861]
[1736580443522,2.6898,185.93,185.88,2.92675861]
[1736580444223,2.6901,185.92,185.88,2.92675861]
[1736580444425,1.6053,185.91,185.88,2.92675861]
[1736580444619,39.49471051,185.99,185.88,2.92675861]
[1736580444819,39.49471051,185.99,185.9,11.26873888]
[1736580445323,39.49471051,185.99,185.92,2.6898]
[1736580445527,2.6891,185.98,185.92,2.6898]
[1736580446720,39.49471051,185.99,185.92,2.6898]
[1736580446925,42.18361051,185.99,185.92,2.6898]
[1736580447322,2.6891,185.98,185.91,2.6901]
[1736580449226,39.49471051,185.99,185.89,21.83487072]
[1736580449227,39.49471051,185.99,185.92,2.6899]
[1736580449431,39.49471051,185.99,185.89,21.83487072]
[1736580449931,2.6892,185.97,185.91,2.6901]
[1736580450127,11.26873888,185.98,185.89,21.83487072]
[1736580450333,11.26873888,185.98,185.9,47.25622162]
[1736580450730,2.6896,185.95,185.9,47.25622162]
[1736580450926,19.50285871,185.98,185.9,47.25622162]
[1736580451127,19.50285871,185.98,185.88,2.92675861]
[1736580451529,2.6896,185.95,185.88,5.61715861]
[1736580452127,2.6898,185.93,185.88,2.92675861]
[1736580452333,11.26873888,185.95,185.88,2.92675861]
[1736580452732,2.6899,185.93,185.88,2.92675861]
[1736580453727,2.69,185.92,185.88,2.92675861]
[1736580453932,1.5631,185.91,185.88,2.92675861]
[1736580454334,1.5631,185.91,185.88,5.61725861]
[1736580456532,1.5631,185.91,185.88,2.92675861]
[1736580456727,2.6894,185.97,185.88,2.92675861]
[1736580456930,1.606,185.99,185.9,11.26873888]
[1736580457331,1.606,185.99,185.92,2.6898]
[1736580457536,1.606,185.99,185.9,11.26873888]
[1736580458334,1.606,185.99,185.93,2.6897]
[1736580458335,4.295,185.99,185.93,2.6897]
[1736580458533,4.295,185.99,185.93,6.41574875]
[1736580460134,1.606,185.99,185.93,6.41574875]
[1736580460437,2.6891,185.98,185.93,6.41574875]
[1736580461139,4.2949,185.99,185.93,6.41574875]
[1736580467141,1.606,185.99,185.93,6.41574875]
[1736580467341,2.6891,185.98,185.93,6.41574875]
[1736580469742,2.6891,185.98,185.93,3.72604875]
[1736580470147,1.606,185.99,185.93,3.72604875]
[1736580470447,11.26873888,185.97,185.93,1.19534875]
[1736580470750,11.26873888,185.97,185.88,2.92675861]
[1736580470949,2.6899,185.93,185.88,2.92675861]
[1736580471447,2.6899,185.93,185.88,5.61725861]
[1736580472941,11.26873888,185.97,185.88,2.92675861]
[1736580473145,2.6901,185.91,185.88,2.92675861]
[1736580474845,11.26873888,185.94,185.88,2.92675861]
[1736580475141,2.6903,185.9,185.88,2.92675861]
[1736580477148,1.5234,185.93,185.88,2.92675861]
[1736580477452,2.6904,185.89,185.88,2.92675861]
[1736580480750,2.6901,185.91,185.88,2.92675861]
[1736580480946,1.5234,185.93,185.88,2.92675861]
[1736580481453,2.6901,185.92,185.88,2.92675861]
[1736580481646,5.3747,186.11,185.88,2.92675861]
[1736580481947,14.53813888,185.99,185.88,2.92675861]
[1736580482452,2.6896,185.95,185.9,2.6902]
[1736580483852,2.6897,185.94,185.89,2.6904]
[1736580484046,2.6897,185.94,185.88,2.92675861]
[1736580484246,14.53813888,185.99,185.88,5.61725861]
[1736580484451,14.53813888,185.99,185.88,2.92675861]
[1736580484653,11.26873888,185.96,185.88,2.92675861]
[1736580485952,2.6903,185.9,185.88,2.92675861]
[1736580489551,2.6901,185.91,185.88,2.92675861]
[1736580489749,11.26873888,185.96,185.88,2.92675861]
[1736580490650,2.6901,185.92,185.88,2.92675861]
[1736580494757,2.6904,185.89,185.88,2.92675861]
[1736580502660,3.2694,185.99,185.88,2.92675861]
[1736580502864,7.20591428,185.93,185.88,2.92675861]
[1736580503861,3.2694,185.99,185.88,2.92675861]
[1736580504057,7.20591428,185.94,185.88,10.13267289]
[1736580504461,2.6899,185.93,185.88,12.82307289]
[1736580506271,2.69,185.92,185.88,10.13267289]
[1736580506770,2.69,185.92,185.88,2.92675861]
[1736580508575,2.6901,185.91,185.88,2.92675861]
[1736580508776,7.20591428,185.92,185.88,2.92675861]
[1736580508975,3.2694,185.99,185.88,2.92675861]
[1736580508976,7.20591428,185.9,185.88,2.92675861]
[1736580509175,2.6904,185.89,185.88,2.92675861]
[1736580511273,9.89631428,185.89,185.88,2.92675861]
[1736580513375,2.6904,185.89,185.88,2.92675861]
[1736580513677,7.79699932,185.97,185.88,2.92675861]
[1736580513877,7.20591428,185.91,185.88,2.92675861]
[1736580514579,2.6904,185.89,185.88,2.92675861]
[1736580523583,2.6903,185.9,185.88,2.92675861]
[1736580524585,2.6904,185.89,185.88,2.92675861]
[1736580556607,2.6904,185.89,185.84,15.96594093]
[1736580559113,2.6904,185.89,185.84,9.89701428]
[1736580568222,2.6904,185.89,185.84,2.6911]
[1736580568423,2.6904,185.89,185.84,9.89701428]
[1736580577125,2.6906,185.88,185.83,7.20591428]
[1736580580128,2.6906,185.88,185.83,9.89711428]
[1736580584141,2.6904,185.89,185.83,9.89711428]
[1736580584433,7.20591428,185.9,185.81,1.6081]
[1736580584640,7.20591428,185.88,185.82,9.89731428]
[1736580586140,9.89651428,185.88,185.82,9.89731428]
[1736580586941,7.20591428,185.88,185.82,9.89731428]
[1736580587142,2.6907,185.87,185.81,4.2996]
[1736580588037,2.6907,185.87,185.82,2.6914]
[1736580593946,7.20591428,185.88,185.81,3.4447489]
[1736580594143,9.89691428,185.86,185.81,3.4447489]
[1736580601444,2.6914,185.82,185.81,3.4447489]
[1736580601646,9.89731428,185.82,185.81,3.4447489]
[1736580603052,2.6916,185.81,185.76,9.89811428]
[1736580604968,7.20591428,185.82,185.76,2.6922]
[1736580605248,7.20591428,185.78,185.71,1.6814]
[1736580605454,7.20591428,185.78,185.7,29.31302431]
[1736580605754,7.20591428,185.78,185.71,9.89891428]
[1736580605755,2.6923,185.76,185.71,9.89891428]
[1736580606052,7.20591428,185.76,185.71,1.54105204]
[1736580606251,2.6924,185.75,185.71,1.54105204]
[1736580607553,9.89791428,185.78,185.72,2.6928]
[1736580607955,7.20591428,185.78,185.71,7.20591428]
[1736580608151,2.6923,185.77,185.71,7.20591428]
[1736580608355,7.20591428,185.74,185.65,1.6708]
[1736580608554,7.20591428,185.72,185.66,7.20591428]
[1736580608756,9.89891428,185.72,185.66,9.89951428]
[1736580608959,7.20591428,185.72,185.62,1.6003]
[1736580609158,2.6933,185.69,185.64,7.20591428]
[1736580609956,2.6933,185.69,185.62,1.6003]
[1736580610257,2.6933,185.69,185.63,7.20591428]
[1736580611150,2.6933,185.69,185.63,9.90011428]
[1736580611554,7.20591428,185.68,185.62,3.16386544]
[1736580612258,9.89931428,185.68,185.62,3.16386544]
[1736580612458,9.89931428,185.68,185.62,10.36977972]
[1736580613654,16.13,185.58,185.35,239.05381383]
[1736580613854,149.0,185.59,185.45,7.43211748]
[1736580614056,1.07717994,185.67,185.46,3.3703]
[1736580614258,6.28,185.66,185.46,6.0668]
[1736580614558,6.28,185.66,185.48,7.20591428]
[1736580614762,7.20591428,185.56,185.46,3.3703]
[1736580614961,7.20591428,185.56,185.46,10.57621428]
[1736580615157,2.6947,185.6,185.46,6.0669]
[1736580615351,7.20591428,185.57,185.48,7.20591428]
[1736580616259,141.89449131,185.62,185.5,7.20591428]
[1736580616562,141.89449131,185.62,185.52,7.20591428]
[1736580616757,7.20591428,185.63,185.54,7.20591428]
[1736580616962,7.20591428,185.63,185.56,7.20591428]
[1736580617761,7.20591428,185.63,185.55,3.1353]
[1736580617960,7.20591428,185.61,185.55,3.1353]
[1736580620166,7.20591428,185.61,185.55,10.34121428]
[1736580621467,7.20591428,185.59,185.55,3.1353]
[1736580623866,7.20591428,185.57,185.55,3.1353]
[1736580624265,6.3,185.63,185.47,7.20591428]
[1736580624465,6.3,185.63,185.48,4.8264]
[1736580624770,6.3,185.63,185.49,7.20591428]
[1736580624965,7.20591428,185.56,185.49,7.20591428]
[1736580626370,7.20591428,185.54,185.48,4.8264]
[1736580626570,7.20591428,185.53,185.48,4.8264]
[1736580626966,7.20591428,185.51,185.48,4.8264]
[1736580629169,141.89449131,185.59,185.48,4.8264]
[1736580629360,7.20591428,185.53,185.48,4.8264]
[1736580630571,7.20591428,185.51,185.48,4.8264]
[1736580631770,7.20591428,185.49,185.48,3.2773]
[1736580632073,7.20591428,185.49,185.43,7.20591428]
[1736580635468,7.20591428,185.49,185.42,1.5401]
[1736580635673,7.20591428,185.47,185.42,1.5401]
[1736580635867,7.20591428,185.47,185.42,8.74601428]
[1736580636068,7.20591428,185.47,185.42,1.5401]
[1736580637482,141.89449131,185.48,185.43,9.90291428]
[1736580637673,7.20591428,185.5,185.43,9.90291428]
[1736580638579,7.20591428,185.5,185.42,1.5401]
[1736580638777,358.30770728,185.55,185.44,7.20591428]
[1736580638978,7.20591428,185.51,185.44,7.20591428]
[1736580639879,7.20591428,185.51,185.45,2.6967]
[1736580640976,7.20591428,185.49,185.45,2.6967]
[1736580641178,216.41321597,185.55,185.48,7.20591428]
[1736580641377,216.41321597,185.55,185.5,7.20591428]
[1736580641972,216.41321597,185.55,185.52,7.20591428]
[1736580642479,7.20591428,185.59,185.53,2.6955]
[1736580642772,7.20591428,185.59,185.53,5.9547]
[1736580642979,7.20591428,185.59,185.53,7.6079]
[1736580644574,2.6946,185.6,185.53,7.6079]
[1736580644873,7.20591428,185.6,185.53,7.6079]
[1736580646678,9.90051428,185.6,185.53,7.6079]
[1736580648078,8.7859,185.69,185.47,7.20591428]
[1736580648274,7.20591428,185.54,185.47,7.20591428]
[1736580648673,9.90141428,185.54,185.47,9.90231428]
[1736580648876,7.20591428,185.54,185.47,7.20591428]
[1736580649571,195.0,185.68,185.48,2.6963]
[1736580649778,7.20591428,185.55,185.48,2.6963]
[1736580650179,7.20591428,185.55,185.49,7.20591428]
[1736580650979,2.6953,185.56,185.49,9.90211428]
[1736580651179,7.20591428,185.56,185.49,7.20591428]
[1736580651581,7.20591428,185.56,185.51,2.6959]
[1736580651777,7.20591428,185.56,185.49,7.20591428]
[1736580651984,7.20591428,185.58,185.51,7.20591428]
[1736580652176,7.20591428,185.6,185.54,2.6954]
[1736580654584,7.20591428,185.6,185.53,7.20591428]
[1736580654790,7.20591428,185.6,185.55,2.6952]
[1736580656889,195.0,185.67,185.51,2.6958]
[1736580656890,9.90081428,185.58,185.51,2.6958]
[1736580657186,7.20591428,185.58,185.5,7.20591428]
[1736580657386,7.20591428,185.58,185.52,7.20591428]
[1736580658185,7.20591428,185.58,185.53,2.6956]
[1736580658582,7.20591428,185.58,185.52,7.20591428]
[1736580658785,9.90121428,185.56,185.5,7.20591428]
[1736580659092,9.90121428,185.56,185.49,2.6962]
[1736580659093,7.20591428,185.56,185.49,2.6962]
[1736580659293,7.20591428,185.54,185.48,7.20591428]
[1736580660085,9.90141428,185.54,185.48,7.20591428]
[1736580660390,7.20591428,185.52,185.45,7.5893]
[1736580660587,9.90171428,185.52,185.45,12.09861428]
[1736580660987,9.90171428,185.52,185.46,2.6966]
[1736580661387,7.20591428,185.52,185.46,2.6966]
[1736580661795,7.20591428,185.52,185.45,12.09861428]
[1736580662093,7.20591428,185.52,185.47,2.6965]
[1736580665098,2.6955,185.55,185.48,2.6963]
[1736580665307,7.20591428,185.59,185.51,7.20591428]
[1736580666207,9.90081428,185.59,185.53,2.6956]
[1736580667310,9.90081428,185.59,185.54,2.6954]
[1736580676008,7.20591428,185.57,185.52,2.6956]
[1736580677013,2.6941,185.64,185.52,2.6956]
[1736580677214,7.20591428,185.58,185.51,7.20591428]
[1736580677415,7.20591428,185.58,185.53,2.6956]
[1736580678220,9.90091428,185.58,185.53,2.6956]
[1736580679714,2.6951,185.57,185.52,2.6957]
[1736580685414,2.6952,185.56,185.51,7.20591428]
[1736580685615,9.90111428,185.56,185.5,2.696]
[1736580685821,9.90111428,185.56,185.51,7.20591428]
[1736580686024,9.90091428,185.58,185.51,9.90171428]
[1736580688814,9.14860461,185.68,185.55,7.20591428]
[1736580689018,7.20591428,185.63,185.55,7.20591428]
[1736580689420,2.6944,185.61,185.55,9.90111428]
[1736580689822,1.3461,185.68,185.57,7.20591428]
[1736580690018,2.6941,185.64,185.59,7.20591428]
[1736580690217,1.3461,185.68,185.59,7.20591428]
[1736580690423,57.01018429,185.7,185.63,7.20591428]
[1736580690624,7.20591428,185.69,185.63,7.20591428]
[1736580690821,9.89921428,185.69,185.63,9.89991428]
[1736580692820,7.20591428,185.69,185.63,9.89991428]
[1736580693016,57.01018429,185.7,185.55,4.8313]
[1736580693017,7.20591428,185.67,185.55,4.8313]
[1736580693217,7.20591428,185.67,185.6,7.20591428]
[1736580694423,7.20591428,185.67,185.6,9.90051428]
[1736580694816,2.6938,185.66,185.6,9.90051428]
[1736580695218,2.6934,185.69,185.62,7.20591428]
[1736580696019,2.6934,185.69,185.64,7.20591428]
[1736580697524,7.20591428,185.68,185.63,2.6941]
[1736580697719,9.89941428,185.68,185.62,7.20591428]
[1736580698324,2.6937,185.66,185.6,9.90041428]
[1736580698525,7.20591428,185.66,185.6,7.20591428]
[1736580699826,7.20591428,185.64,185.57,2.6949]
[1736580700028,7.20591428,185.62,185.56,7.20591428]
[1736580700219,7.20591428,185.62,185.55,4.8313]
[1736580700625,7.20591428,185.6,185.53,7.20591428]
[1736580701024,2.6949,185.59,185.53,7.20591428]
[1736580701322,2.6949,185.59,185.52,2.6956]
[1736580701520,2.6949,185.59,185.51,5.94]
[1736580701723,11.29834578,185.64,185.52,11.29834578]
[1736580701924,11.29834578,185.64,185.53,1.5519]
[1736580703121,2.6942,185.63,185.57,2.695]
[1736580703324,2.6942,185.63,185.53,1.5519]
[1736580703525,1.3436,185.66,185.53,1.5519]
[1736580703723,5.94,185.7,185.55,11.29834578]
[1736580703918,11.29834578,185.69,185.58,11.29834578]
[1736580704320,2.6936,185.67,185.61,2.6943]
[1736580705625,11.29834578,185.69,185.58,11.29834578]
[1736580706131,2.6939,185.65,185.58,13.99314578]
[1736580706330,11.29834578,185.69,185.58,2.6948]
[1736580706727,2.6938,185.66,185.58,2.6948]
[1736580707027,11.29834578,185.69,185.58,2.6948]
[1736580707229,11.29834578,185.66,185.55,11.29834578]
[1736580707426,11.29834578,185.66,185.57,2.695]
[1736580708831,11.29834578,185.66,185.56,2.6952]
[1736580709031,11.29834578,185.66,185.54,5.92]
[1736580709228,2.6945,185.61,185.54,5.92]
[1736580709427,11.29834578,185.63,185.55,2.6952]
[1736580709923,2.6944,185.62,185.57,2.695]
[1736580710324,2.6942,185.63,185.54,5.92]
[1736580710922,2.6942,185.63,185.57,2.6949]
[1736580712734,2.6945,185.61,185.57,2.6949]
[1736580713434,2.6945,185.61,185.54,5.92]
[1736580713635,2.6945,185.61,185.55,2.6952]
[1736580715934,2.6946,185.6,185.55,2.6952]
[1736580716431,211.19,185.71,185.53,1.5519]
[1736580716635,11.29834578,185.63,185.53,1.5519]
[1736580717036,2.6948,185.59,185.53,1.5519]
[1736580718335,2.6948,185.59,185.53,4.2474]
[1736580722442,2.6949,185.58,185.53,4.2474]
[1736580722942,2.6949,185.58,185.53,1.5519]
[1736580723142,11.29834578,185.63,185.52,1.666]
[1736580723538,11.29834578,185.63,185.53,2.6956]
[1736580724345,2.6949,185.59,185.53,2.6956]
[1736580724743,2.6942,185.63,185.57,2.695]
[1736580725441,2.6942,185.63,185.57,9.92197681]
[1736580725641,2.6942,185.63,185.58,2.6948]
[1736580725842,7.22697681,185.64,185.57,7.22697681]
[1736580726541,2.6939,185.65,185.59,7.22697681]
[1736580726944,9.92067681,185.66,185.59,7.22697681]
[1736580727143,7.22697681,185.66,185.61,2.6944]
[1736580727335,195.0,185.67,185.58,11.28803656]
[1736580727542,195.0,185.67,185.59,3.2782]
[1736580727942,195.0,185.67,185.62,2.6943]
[1736580728546,195.0,185.67,185.59,3.2782]
[1736580728745,197.6936,185.67,185.61,2.6944]
[1736580730042,2.6936,185.67,185.59,3.2782]
[1736580730247,2.5618,185.75,185.61,11.28803656]
[1736580730447,11.28803656,185.74,185.61,11.28803656]
[1736580731346,2.6931,185.7,185.64,2.694]
[1736580737444,2.6936,185.67,185.61,11.28803656]
[1736580737645,11.28803656,185.71,185.6,1.5774]
[1736580738442,11.28803656,185.74,185.6,1.5774]
[1736580739546,2.6931,185.7,185.6,1.5774]
[1736580739945,2.6931,185.7,185.63,2.694]
[1736580741746,2.6934,185.69,185.63,2.694]
[1736580742050,11.28803656,185.74,185.63,2.694]
[1736580743350,2.6933,185.69,185.63,2.694]
[1736580743546,11.28803656,185.71,185.6,1.5774]
[1736580745451,11.28803656,185.68,185.59,3.2782]
[1736580746151,2.6939,185.65,185.59,5.9729]
[1736580747254,9.91969502,185.65,185.59,13.19869502]
[1736580748751,7.22579502,185.65,185.59,10.50399502]
[1736580748953,2.6941,185.64,185.59,10.50399502]
[1736580749154,7.22579502,185.65,185.58,2.6949]
[1736580749351,7.22579502,185.61,185.54,2.6955]
[1736580750356,7.22579502,185.61,185.54,9.92129502]
[1736580750757,7.22579502,185.61,185.56,2.6952]
[1736580750956,2.5586,185.68,185.56,7.22579502]
[1736580751156,7.22579502,185.64,185.56,7.22579502]
[1736580751557,2.6942,185.63,185.58,2.6949]
[1736580752158,7.22579502,185.65,185.58,7.22579502]
[1736580752557,9.91979502,185.65,185.59,2.6947]
[1736580753359,2.694,185.65,185.59,2.6947]
[1736580753555,7.22579502,185.64,185.59,2.6947]
[1736580754962,2.694,185.65,185.59,2.6947]
[1736580755158,195.0,185.69,185.51,8.9558]
[1736580755362,7.22579502,185.68,185.6,7.22579502]
[1736580755863,2.5596,185.78,185.6,7.22579502]
[1736580756070,7.22579502,185.68,185.6,7.22579502]
[1736580756466,7.22579502,185.68,185.63,2.6941]
[1736580756658,5.78,185.76,185.62,7.22579502]
[1736580756859,195.0,185.77,185.64,7.22579502]
[1736580757065,7.22579502,185.72,185.64,7.22579502]
[1736580757668,7.22579502,185.72,185.67,2.6935]
[1736580757864,7.22579502,185.72,185.64,7.22579502]
[1736580758368,2.5596,185.78,185.66,2.6937]
[1736580758569,7.22579502,185.72,185.66,2.6937]
[1736580759164,9.91869502,185.72,185.66,2.6937]
[1736580759866,9.91869502,185.72,185.66,9.91949502]
[1736580760267,7.22579502,185.72,185.66,7.22579502]
[1736580760565,7.22579502,185.72,185.6,4.7226]
[1736580760566,7.22579502,185.74,185.68,7.22579502]
[1736580760866,7.22579502,185.74,185.7,2.6931]
[1736580761072,2.6923,185.77,185.7,2.6931]
[1736580761073,2.6923,185.77,185.7,7.22579502]
[1736580761277,7.22579502,185.78,185.7,7.22579502]
[1736580761876,9.91779502,185.78,185.71,2.693]
[1736580762167,7.22579502,185.76,185.68,4.7489]
[1736580762471,7.22579502,185.74,185.68,4.7489]
[1736580763373,9.91849502,185.74,185.68,7.4423]
[1736580763970,7.22579502,185.75,185.69,9.91899502]
[1736580764573,7.22579502,185.75,185.68,4.7489]
[1736580765475,2.6926,185.74,185.68,4.7489]
[1736580765670,7.22579502,185.75,185.68,4.7489]
[1736580766575,7.22579502,185.73,185.68,2.6934]
[1736580766875,7.22579502,185.73,185.67,5.76]
[1736580767175,7.22579502,185.73,185.68,2.6934]
[1736580768773,7.22579502,185.73,185.67,5.76]
[1736580769075,7.22579502,185.73,185.69,2.6933]
[1736580769673,7.22579502,185.75,185.68,7.22579502]
[1736580769976,7.22579502,185.75,185.7,2.6931]
[1736580771875,195.0,185.82,185.7,7.22579502]
[1736580772171,7.22579502,185.77,185.72,2.6928]
[1736580772673,7.22579502,185.77,185.71,2.693]
[1736580773272,9.91799502,185.77,185.71,2.693]
[1736580773473,7.22579502,185.75,185.71,2.693]
[1736580774378,9.91829502,185.75,185.69,2.6932]
[1736580774679,7.22579502,185.75,185.68,12.03829502]
[1736580775972,7.22579502,185.7,185.46,22.49147094]
[1736580776283,7.22579502,185.64,185.54,1.5223]
[1736580776580,7.22579502,185.64,185.58,2.6949]
[1736580777380,7.22579502,185.64,185.58,9.92069502]
[1736580777685,9.91979502,185.64,185.57,9.92079502]
[1736580777980,7.22579502,185.64,185.57,7.22579502]
[1736580778175,7.22579502,185.64,185.58,2.6948]
[1736580778480,7.22579502,185.64,185.57,7.22579502]
[1736580779474,7.22579502,185.64,185.59,2.6947]
[1736580781081,7.22579502,185.64,185.57,7.22579502]
[1736580781386,9.91979502,185.64,185.57,7.22579502]
[1736580781780,9.91979502,185.64,185.57,2.695]
[1736580781781,2.694,185.64,185.57,2.695]
[1736580781984,9.92009502,185.62,185.55,1.5532]
[1736580782387,9.92009502,185.62,185.56,2.6952]
[1736580782787,7.22579502,185.62,185.56,2.6952]
[1736580786990,7.22579502,185.62,185.56,7.22579502]
[1736580788085,7.22579502,185.62,185.58,2.6948]
[1736580790389,7.22579502,185.64,185.56,7.22579502]
[1736580790690,7.22579502,185.64,185.59,2.6946]
[1736580791083,7.22579502,185.66,185.61,2.6944]
[1736580792885,195.0,185.72,185.6,7.22579502]
[1736580793084,7.22579502,185.68,185.62,7.22579502]
[1736580793284,60.90428023,185.74,185.62,7.22579502]
[1736580793482,7.22579502,185.69,185.62,7.22579502]
[1736580794392,7.22579502,185.69,185.64,2.694]
[1736580795089,60.90428023,185.74,185.62,7.22579502]
[1736580795285,7.22579502,185.72,185.66,2.6937]
[1736580796089,7.22579502,185.72,185.67,2.6936]
[1736580796790,195.0,185.79,185.66,7.22579502]
[1736580796991,7.22579502,185.74,185.68,7.22579502]
[1736580797493,7.22579502,185.74,185.69,2.6933]
[1736580798393,2.6925,185.75,185.69,2.6933]
[1736580798594,7.22579502,185.76,185.68,7.22579502]
[1736580798798,1.3426,185.81,185.72,7.22579502]
[1736580799100,7.22579502,185.78,185.72,7.22579502]
[1736580799297,7.22579502,185.78,185.74,2.6926]
[1736580800094,7.22579502,185.78,185.75,2.6924]
[1736580800592,7.22579502,185.8,185.72,7.22579502]
[1736580800895,7.22579502,185.8,185.75,2.6923]
[1736580801395,2.6916,185.81,185.75,2.6923]
[1736580802889,11.27243211,185.8,185.72,2.6928]
[1736580803999,2.692,185.78,185.72,2.6928]
[1736580806903,13.96423211,185.8,185.73,2.6927]
[1736580807199,13.96423211,185.8,185.69,4.8454]
[1736580807996,2.6918,185.8,185.74,2.6925]
[1736580808192,2.6915,185.82,185.71,11.27243211]
[1736580808695,11.27243211,185.83,185.75,2.6924]
[1736580810192,11.27243211,185.83,185.76,2.6923]
[1736580810801,2.6915,185.82,185.76,2.6923]
[1736580812697,2.6916,185.81,185.75,2.6924]
[1736580812902,11.27243211,185.83,185.71,11.27243211]
[1736580813103,11.27243211,185.8,185.69,4.8454]
[1736580813291,2.6922,185.77,185.69,7.5387]
[1736580813497,11.27243211,185.8,185.69,4.8454]
[1736580813897,2.6921,185.78,185.72,2.6928]
[1736580814098,11.27243211,185.8,185.72,2.6928]
[1736580816108,2.6921,185.77,185.72,2.6928]
[1736580819405,11.27243211,185.8,185.71,11.27243211]
[1736580819406,2.6918,185.8,185.71,11.27243211]
[1736580819905,2.6918,185.8,185.74,2.6925]
[1736580820997,2.6918,185.8,185.71,11.27243211]
[1736580821195,11.27243211,185.84,185.71,11.27243211]
[1736580821503,7.2144451,185.8,185.73,7.2144451]
[1736580821906,9.9062451,185.8,185.74,2.6925]
[1736580822800,2.6918,185.8,185.74,2.6925]
[1736580823003,9.9062451,185.79,185.74,2.6925]
[1736580823203,1.3426,185.86,185.75,7.2144451]
[1736580823399,9.9057451,185.83,185.75,7.2144451]
[1736580823908,9.9057451,185.83,185.77,7.2144451]
[1736580824602,2.6913,185.83,185.77,7.2144451]
[1736580825206,2.691,185.85,185.77,7.2144451]
[1736580825403,2.691,185.85,185.79,7.2144451]
[1736580825602,7.2144451,185.84,185.77,7.2144451]
[1736580825802,2.6913,185.83,185.78,2.692]
[1736580826204,2.6913,185.83,185.77,7.2144451]
[1736580826403,2.6913,185.83,185.77,9.9065451]
[1736580826606,2.6914,185.82,185.77,9.9065451]
[1736580827802,7.2144451,185.82,185.76,4.9234]
[1736580828508,9.9061451,185.8,185.76,1.6344]
[1736580828709,9.9061451,185.8,185.75,7.2144451]
[1736580829106,2.6917,185.8,185.75,7.2144451]
[1736580830509,2.6917,185.8,185.75,9.9068451]
[1736580838207,1.2134,185.9,185.75,7.2144451]
[1736580838415,2.6912,185.84,185.78,2.692]
[1736580840412,2.6913,185.83,185.78,2.692]
[1736580840614,7.2144451,185.83,185.75,7.2144451]
[1736580841511,2.6917,185.81,185.75,9.9068451]